bitfinex/quotes_BTCUSD_20250607
["timestamp","ask_amount","ask_price","bid_price","bid_amount"]
[1749254781445,0.97099573,104430.0,104420.0,0.91400807]
[1749254781661,0.97098061,104430.0,104420.0,0.91400807]
[1749254781907,0.97098066,104430.0,104420.0,0.91400807]
[1749254782343,0.96425441,104430.0,104420.0,0.91400807]
[1749254782556,0.97098048,104430.0,104420.0,0.91400807]
[1749254782763,0.96425439,104430.0,104420.0,0.91400807]
[1749254782993,0.97098057,104430.0,104420.0,0.91400807]
[1749254783200,0.94631815,104430.0,104420.0,0.91400807]
[1749254783417,0.97098082,104430.0,104420.0,0.91400807]
[1749254783625,0.97098081,104430.0,104420.0,0.91400807]
[1749254783834,0.94631815,104430.0,104420.0,0.91400807]
[1749254784041,0.96425458,104430.0,104420.0,0.91400807]
[1749254784256,0.94631815,104430.0,104420.0,0.91400807]
[1749254784462,0.79318552,104430.0,104420.0,0.91400807]
[1749254784718,0.97097482,104430.0,104420.0,0.91400807]
[1749254784940,0.97097029,104430.0,104420.0,0.91400807]
[1749254785145,0.94631815,104430.0,104420.0,0.91400807]
[1749254785581,0.93552216,104430.0,104420.0,0.91400807]
[1749254785815,0.93552233,104430.0,104420.0,0.91400807]
[1749254786044,0.9422457,104430.0,104420.0,0.91400807]
[1749254786256,0.92431671,104430.0,104420.0,0.91400807]
[1749254787007,0.91759334,104430.0,104420.0,0.91400807]
[1749254787412,0.92431625,104430.0,104420.0,0.91400807]
[1749254787657,0.91759334,104430.0,104420.0,0.91400807]
[1749254787870,0.92431626,104430.0,104420.0,0.91400807]
[1749254788078,0.92431624,104430.0,104420.0,0.91400807]
[1749254789088,0.92431519,104430.0,104420.0,0.91400807]
[1749254789331,0.93551847,104430.0,104420.0,0.91400807]
[1749254789539,0.94224052,104430.0,104420.0,0.91400807]
[1749254790449,0.94224161,104430.0,104420.0,0.63800807]
[1749254790658,0.757728,104430.0,104420.0,0.63800807]
[1749254790868,0.93551925,104430.0,104420.0,0.63800807]
[1749254791119,0.94224146,104430.0,104420.0,0.63800807]
[1749254791764,0.94224198,104430.0,104420.0,0.63800807]
[1749254792215,0.94220885,104430.0,104420.0,0.63800807]
[1749254792454,0.93548684,104430.0,104420.0,0.63800807]
[1749254792663,0.94220929,104430.0,104420.0,0.63800807]
[1749254792868,0.91756021,104430.0,104420.0,0.63800807]
[1749254793271,0.97099607,104430.0,104420.0,0.63800807]
[1749254793497,0.97099604,104430.0,104420.0,0.63800807]
[1749254793735,0.59273981,104430.0,104420.0,0.63800807]
[1749254793940,0.59274,104430.0,104420.0,0.63800807]
[1749254794156,0.59274007,104430.0,104420.0,0.63800807]
[1749254794353,0.59273997,104430.0,104420.0,0.63800807]
[1749254794565,0.5860174,104430.0,104420.0,0.63800807]
[1749254794770,0.59274329,104430.0,104420.0,0.63800807]
[1749254795029,0.58602005,104430.0,104420.0,0.63800807]
[1749254795214,0.5748144,104430.0,104420.0,0.63800807]
[1749254795442,0.55186768,104430.0,104420.0,0.63800807]
[1749254795643,0.54514425,104430.0,104420.0,0.63800807]
[1749254795850,0.55186755,104430.0,104420.0,0.63800807]
[1749254796063,0.89186755,104430.0,104420.0,0.63800807]
[1749254796288,0.92601944,104430.0,104420.0,0.63800807]
[1749254796496,0.9707299,104430.0,104420.0,0.63800807]
[1749254796703,0.95280176,104430.0,104420.0,0.63800807]
[1749254796909,0.9640071,104430.0,104420.0,0.63800807]
[1749254797121,0.97073076,104430.0,104420.0,0.63800807]
[1749254797864,0.96400323,104430.0,104420.0,0.63800807]
[1749254798095,0.94607405,104430.0,104420.0,0.63800807]
[1749254798322,0.9707269,104430.0,104420.0,0.63800807]
[1749254798547,0.96400342,104430.0,104420.0,0.63800807]
[1749254798775,0.97072727,104430.0,104420.0,0.63800807]
[1749254799005,0.79293627,104430.0,104420.0,0.63800807]
[1749254799230,0.97072731,104430.0,104420.0,0.63800807]
[1749254799458,0.97072728,104430.0,104420.0,0.63800807]
[1749254799885,0.96400381,104430.0,104420.0,0.63800807]
[1749254800388,0.9640039,104430.0,104420.0,0.63800807]
[1749254800588,0.97072748,104430.0,104420.0,0.63800807]
[1749254800984,0.79293648,104430.0,104420.0,0.63800807]
[1749254801218,0.95279771,104430.0,104420.0,0.63800807]
[1749254801437,0.97072907,104430.0,104420.0,0.63800807]
[1749254801643,0.94607405,104430.0,104420.0,0.63800807]
[1749254801816,0.97072919,104430.0,104420.0,0.63800807]
[1749254802060,0.97072915,104430.0,104420.0,0.63800807]
[1749254802268,0.95279817,104430.0,104420.0,0.63800807]
[1749254802470,0.96400506,104430.0,104420.0,0.63800807]
[1749254802587,10.97072918,104430.0,104420.0,0.63800807]
[1749254803002,10.93922921,104430.0,104420.0,0.63800807]
[1749254803207,10.92129819,104430.0,104420.0,0.63800807]
[1749254803413,10.92129817,104430.0,104420.0,0.63800807]
[1749254803613,10.97463107,104430.0,104420.0,0.63800807]
[1749254803826,10.97463104,104430.0,104420.0,0.63800807]
[1749254804035,10.7833918,104430.0,104420.0,0.63800807]
[1749254804243,10.96790695,104430.0,104420.0,0.63800807]
[1749254804438,10.97463108,104430.0,104420.0,0.63800807]
[1749254804648,10.9746321,104430.0,104420.0,0.63800807]
[1749254804846,10.97463253,104430.0,104420.0,0.63800807]
[1749254805054,10.77218494,104430.0,104420.0,0.63800807]
[1749254805284,10.97463277,104430.0,104420.0,0.63800807]
[1749254806311,10.95670053,104430.0,104420.0,0.63800807]
[1749254806542,10.97463279,104430.0,104420.0,0.63800807]
[1749254806751,10.97463272,104430.0,104420.0,0.63800807]
[1749254806957,10.94997594,104430.0,104420.0,0.63800807]
[1749254807568,10.95670905,104430.0,104420.0,0.63800807]
[1749254807799,10.94997594,104430.0,104420.0,0.63800807]
[1749254808009,10.96793093,104430.0,104420.0,0.63800807]
[1749254808258,10.97466426,104430.0,104420.0,0.63800807]
[1749254808671,10.94997594,104430.0,104420.0,0.63800807]
[1749254808870,10.95670894,104430.0,104420.0,0.63800807]
[1749254809116,10.96793107,104430.0,104420.0,0.63800807]
[1749254809321,10.956709,104430.0,104420.0,0.63800807]
[1749254809568,10.97466385,104430.0,104420.0,0.63800807]
[1749254809770,11.00621573,104430.0,104420.0,0.63800807]
[1749254810114,0.38849831,104410.0,104400.0,0.50808924]
[1749254810410,0.40645227,104410.0,104400.0,1.14113058]
[1749254810603,0.37892106,104410.0,104400.0,1.13155222]
[1749254810843,0.40360667,104410.0,104400.0,1.14113076]
[1749254811046,0.39687456,104410.0,104400.0,1.14113076]
[1749254811215,0.4036076,104410.0,104400.0,0.75701076]
[1749254811367,0.38565375,104410.0,104400.0,1.15066921]
[1749254811587,0.40360759,104410.0,104400.0,1.15066921]
[1749254811792,0.40360759,104410.0,104400.0,1.16024757]
[1749254812191,0.40360766,104410.0,104400.0,1.16024757]
[1749254812587,0.38565376,104410.0,104400.0,1.16324757]
[1749254812763,0.40360766,104410.0,104400.0,1.16324757]
[1749254813196,0.38565377,104410.0,104400.0,1.16324757]
[1749254813396,0.40360766,104410.0,104400.0,1.16624757]
[1749254813722,0.37892106,104410.0,104400.0,1.16624757]
[1749254813970,0.39687491,104410.0,104400.0,1.17582583]
[1749254814220,0.4036076,104410.0,104400.0,1.17582583]
[1749254814434,0.38565375,104410.0,104400.0,1.17582583]
[1749254814667,0.40360699,104410.0,104400.0,1.17582583]
[1749254814880,0.40360655,104410.0,104400.0,1.17582583]
[1749254815070,0.40360668,104410.0,104400.0,1.16624757]
[1749254815299,0.4036067,104410.0,104400.0,1.16624757]
[1749254815546,0.40360678,104410.0,104400.0,1.16624757]
[1749254815722,0.40360717,104410.0,104400.0,1.15666921]
[1749254815932,0.40360712,104410.0,104400.0,1.15666921]
[1749254816125,0.39687458,104410.0,104400.0,1.16624757]
[1749254816343,0.38565363,104410.0,104400.0,1.16624757]
[1749254816719,0.39686072,104410.0,104400.0,1.16624757]
[1749254816920,0.37892106,104410.0,104400.0,1.16624757]
[1749254817130,0.39686075,104410.0,104400.0,1.16624757]
[1749254817307,0.37892106,104410.0,104400.0,1.16624757]
[1749254817514,0.39686075,104410.0,104400.0,1.16624757]
[1749254817854,0.38564844,104410.0,104400.0,0.78216757]
[1749254818063,0.39686075,104410.0,104400.0,1.16856757]
[1749254818265,0.40358813,104410.0,104400.0,1.16856757]
[1749254819084,0.38564844,104410.0,104400.0,1.16856757]
[1749254819306,0.39686075,104410.0,104400.0,1.16856757]
[1749254819497,0.20785744,104410.0,104400.0,1.16856757]
[1749254819702,0.39686075,104410.0,104400.0,1.16856757]
[1749254819903,0.40358711,104410.0,104400.0,1.16856757]
[1749254820864,0.37892106,104410.0,104400.0,1.16856757]
[1749254821074,0.39400958,104410.0,104400.0,1.13983222]
[1749254821279,0.37607063,104410.0,104400.0,1.14941058]
[1749254821480,0.38279773,104410.0,104400.0,1.14941058]
[1749254821683,0.40746378,104410.0,104400.0,1.14941058]
[1749254821893,0.38952483,104410.0,104400.0,1.14941058]
[1749254822111,0.40746345,104410.0,104400.0,1.14941058]
[1749254822319,0.38279773,104410.0,104400.0,1.14941058]
[1749254822491,0.40073639,104410.0,104400.0,1.14941058]
[1749254822635,0.21173372,104410.0,104400.0,1.14941058]
[1749254822841,0.40073639,104410.0,104400.0,1.14941058]
[1749254823105,0.40746382,104410.0,104400.0,1.14941058]
[1749254823307,0.40073671,104410.0,104400.0,1.14941058]
[1749254823542,0.40746382,104410.0,104400.0,1.14941058]
[1749254823786,0.40073671,104410.0,104400.0,1.15898884]
[1749254823973,0.38952484,104410.0,104400.0,1.15898884]
[1749254824401,0.40746382,104410.0,104400.0,1.15898884]
[1749254824604,0.4074617,104410.0,104400.0,1.15898884]
[1749254824808,0.38952484,104410.0,104400.0,1.15898884]
[1749254825006,0.40073459,104410.0,104400.0,1.15898884]
[1749254825211,0.40746091,104410.0,104400.0,1.15898884]
[1749254825621,0.40073459,104410.0,104400.0,1.15898884]
[1749254825889,0.40746091,104410.0,104400.0,1.15898884]
[1749254826074,0.40746091,104410.0,104400.0,1.13983222]
[1749254826268,0.40746091,104410.0,104400.0,1.14941067]
[1749254826704,0.40746091,104410.0,104400.0,1.15898903]
[1749254826931,0.40745905,104410.0,104400.0,1.15898903]
[1749254827142,0.4074583,104410.0,104400.0,1.15898903]
[1749254827320,0.38952332,104410.0,104400.0,1.15898903]
[1749254827569,0.40745825,104410.0,104400.0,1.15898903]
[1749254828154,0.40745964,104410.0,104400.0,1.15898903]
[1749254828364,0.40746015,104410.0,104400.0,1.15898903]
[1749254828728,0.40746015,104410.0,104400.0,1.16856729]
[1749254828925,0.38952384,104410.0,104400.0,1.16856729]
[1749254829128,0.40073404,104410.0,104400.0,1.16856729]
[1749254829558,0.38952384,104410.0,104400.0,1.16856729]
[1749254829962,0.40746017,104410.0,104400.0,1.16856729]
[1749254830358,0.40073404,104410.0,104400.0,1.14941067]
[1749254830802,0.4074622,104410.0,104400.0,1.14941067]
[1749254831006,0.4074622,104410.0,104400.0,0.76301067]
[1749254831211,0.40746297,104410.0,104400.0,1.15842903]
[1749254831540,0.38952461,104410.0,104400.0,1.15842903]
[1749254831750,0.4074662,104410.0,104400.0,1.15842903]
[1749254832016,0.38279773,104410.0,104400.0,1.15842903]
[1749254832507,0.38952549,104410.0,104400.0,1.15842903]
[1749254832705,0.40746618,104410.0,104400.0,1.15842903]
[1749254833711,0.40746683,104410.0,104400.0,1.15842903]
[1749254833919,0.40073842,104410.0,104400.0,1.15842903]
[1749254834123,0.40746659,104410.0,104400.0,1.15842903]
[1749254834335,0.40746625,104410.0,104400.0,1.15842903]
[1749254834513,0.40746631,104410.0,104400.0,1.15842903]
[1749254834926,0.50386579,104410.0,104400.0,0.56186134]
[1749254835157,0.557608,104410.0,104400.0,0.91776134]
[1749254835361,0.58635411,104410.0,104400.0,0.91776134]
[1749254835567,0.57961954,104410.0,104400.0,0.91776134]
[1749254835796,0.58635379,104410.0,104400.0,0.91776134]
[1749254836005,0.58635326,104410.0,104400.0,0.91476134]
[1749254836202,0.58635326,104410.0,104400.0,0.91376134]
[1749254836624,0.58635326,104410.0,104400.0,0.91576134]
[1749254836842,0.58633434,104410.0,104400.0,0.91576134]
[1749254837259,0.39059756,104410.0,104400.0,0.91576134]
[1749254837409,0.57960022,104410.0,104400.0,0.91576134]
[1749254837637,0.58632719,104410.0,104400.0,0.91576134]
[1749254837843,0.56838858,104410.0,104400.0,0.91576134]
[1749254838048,0.58632739,104410.0,104400.0,0.91576134]
[1749254838693,0.58632369,104410.0,104400.0,0.91576134]
[1749254838919,0.56838763,104410.0,104400.0,0.91576134]
[1749254839102,0.56166161,104410.0,104400.0,0.91576134]
[1749254839354,0.37773279,104410.0,104400.0,0.91576134]
[1749254839568,0.53758766,104410.0,104400.0,0.91576134]
[1749254839986,0.5555238,104410.0,104400.0,0.91576134]
[1749254840404,0.55552382,104410.0,104400.0,0.91576134]
[1749254840614,0.54879775,104410.0,104400.0,0.91576134]
[1749254840847,0.53758767,104410.0,104400.0,0.91576134]
[1749254841061,0.57122383,104410.0,104400.0,0.91576134]
[1749254841276,0.57122384,104410.0,104400.0,0.91576134]
[1749254841489,0.58772384,104410.0,104400.0,0.91576134]
[1749254841709,0.58772384,104410.0,104400.0,0.52896134]
[1749254841930,0.58772384,104410.0,104400.0,0.91540134]
[1749254842140,0.59185461,104410.0,104400.0,0.91540134]
[1749254842351,0.60978983,104410.0,104400.0,0.91540134]
[1749254842564,0.61651553,104410.0,104400.0,0.91540134]
[1749254842984,0.60978983,104410.0,104400.0,0.91540134]
[1749254843428,0.43872453,104410.0,104400.0,0.91540134]
[1749254843643,0.61651553,104410.0,104400.0,0.91540134]
[1749254843855,0.61651551,104410.0,104400.0,0.91540134]
[1749254844273,0.58431551,104410.0,104400.0,0.91540134]
[1749254844485,0.58431505,104410.0,104400.0,0.91540134]
[1749254844724,0.5367124,104410.0,104400.0,0.91540134]
[1749254844937,0.54343745,104410.0,104400.0,0.91540134]
[1749254845152,0.5367124,104410.0,104400.0,0.91540134]
[1749254845364,0.56137094,104410.0,104400.0,0.91540134]
[1749254845571,0.38357986,104410.0,104400.0,0.63936134]
[1749254845787,0.56137086,104410.0,104400.0,0.63936134]
[1749254846043,0.55464583,104410.0,104400.0,0.63936134]
[1749254846253,0.54343735,104410.0,104400.0,0.63936134]
[1749254846482,0.55464562,104410.0,104400.0,0.63936134]
[1749254846691,0.56137057,104410.0,104400.0,0.63936134]
[1749254846902,0.56137045,104410.0,104400.0,0.63936134]
[1749254847850,0.57034529,104410.0,104400.0,0.63936134]
[1749254848056,0.55913723,104410.0,104400.0,0.63936134]
[1749254848263,0.57707012,104410.0,104400.0,0.63924134]
[1749254848465,0.5524124,104410.0,104400.0,0.63924134]
[1749254848675,0.3746214,104410.0,104400.0,0.63924134]
[1749254848886,0.5524124,104410.0,104400.0,0.63924134]
[1749254849090,0.55913725,104410.0,104400.0,0.63924134]
[1749254849311,0.57707012,104410.0,104400.0,0.63924134]
[1749254849732,0.57034529,104410.0,104400.0,0.63924134]
[1749254850166,0.56137012,104410.0,104400.0,0.63924134]
[1749254850390,0.54343723,104410.0,104400.0,0.63924134]
[1749254850622,0.5546453,104410.0,104400.0,0.63924134]
[1749254850845,0.3768543,104410.0,104400.0,0.63924134]
[1749254851103,0.54343723,104410.0,104400.0,0.63924134]
[1749254851765,0.56137012,104410.0,104400.0,0.63924134]
[1749254851974,0.54343723,104410.0,104400.0,0.63924134]
[1749254852179,0.5259231,104410.0,104400.0,0.63924134]
[1749254852406,0.55461827,104410.0,104400.0,0.63924134]
[1749254852617,0.53668538,104410.0,104400.0,0.63924134]
[1749254852834,0.5613431,104410.0,104400.0,0.63924134]
[1749254853258,0.54341038,104410.0,104400.0,0.63924134]
[1749254853464,0.53668538,104410.0,104400.0,0.63924134]
[1749254853701,0.55461872,104410.0,104400.0,0.63924134]
[1749254853927,0.51461738,104410.0,104400.0,0.63924134]
[1749254854143,0.53255072,104410.0,104400.0,0.63924134]
[1749254854347,0.50789238,104410.0,104400.0,0.63924134]
[1749254854552,0.52582613,104410.0,104400.0,0.63924134]
[1749254855182,0.53255128,104410.0,104400.0,0.63924134]
[1749254855584,0.55550741,104410.0,104400.0,0.63924134]
[1749254856890,0.54878226,104410.0,104400.0,0.63924134]
[1749254857176,0.53757366,104410.0,104400.0,0.63924134]
[1749254857817,0.53757414,104410.0,104400.0,0.63924134]
[1749254858265,0.55550916,104410.0,104400.0,0.63924134]
[1749254858484,0.55550923,104410.0,104400.0,0.63924134]
[1749254858697,0.54878358,104410.0,104400.0,0.63924134]
[1749254858909,0.53757416,104410.0,104400.0,0.63924134]
[1749254859116,0.53084851,104410.0,104400.0,0.63924134]
[1749254859329,0.53757435,104410.0,104400.0,0.63924134]
[1749254859538,0.53084851,104410.0,104400.0,0.63924134]
[1749254859755,0.55551008,104410.0,104400.0,0.63924134]
[1749254859982,0.55551019,104410.0,104400.0,0.63924134]
[1749254860194,0.3597835,104410.0,104400.0,0.63924134]
[1749254860373,0.55551047,104410.0,104400.0,0.63924134]
[1749254860577,0.55551048,104410.0,104400.0,0.63924134]
[1749254860726,0.54878447,104410.0,104400.0,0.63924134]
[1749254860930,0.53757497,104410.0,104400.0,0.63924134]
[1749254861338,0.53757499,104410.0,104400.0,0.63924134]
[1749254861560,0.54878945,104410.0,104400.0,0.63924134]
[1749254861759,0.21282838,104410.0,104400.0,0.63924134]
[1749254862015,0.42232185,104410.0,104400.0,0.63924134]
[1749254862226,0.22658991,104410.0,104400.0,0.63924134]
[1749254862443,0.40438091,104410.0,104400.0,0.63924134]
[1749254862580,0.42733704,104410.0,104400.0,0.63924134]
[1749254863027,0.44527797,104410.0,104400.0,0.63924134]
[1749254863227,0.42733704,104410.0,104400.0,0.63924134]
[1749254863898,0.4452936,104410.0,104400.0,0.63924134]
[1749254864093,0.42733704,104410.0,104400.0,0.63924134]
[1749254864414,0.44529439,104410.0,104400.0,0.63924134]
[1749254864643,0.42733704,104410.0,104400.0,0.63924134]
[1749254865108,0.44529457,104410.0,104400.0,0.63924134]
[1749254865319,0.42733704,104410.0,104400.0,0.63924134]
[1749254866200,0.44529623,104410.0,104400.0,0.63924134]
[1749254866646,0.44529754,104410.0,104400.0,0.63924134]
[1749254866859,0.44529883,104410.0,104400.0,0.63924134]
[1749254867079,0.44530028,104410.0,104400.0,0.63924134]
[1749254867296,0.44530031,104410.0,104400.0,0.63924134]
[1749254867509,0.44530228,104410.0,104400.0,0.63924134]
[1749254867738,0.23786706,104410.0,104400.0,0.89124701]
[1749254867955,0.23406659,104410.0,104400.0,0.90082491]
[1749254868179,0.24364438,104410.0,104400.0,0.90082491]
[1749254868393,0.22567727,104410.0,104400.0,0.90082491]
[1749254868608,0.24364466,104410.0,104400.0,0.90082509]
[1749254868825,0.24364539,104410.0,104400.0,0.90082509]
[1749254869269,0.225678,104410.0,104400.0,0.90082509]
[1749254869498,0.225678,104410.0,104400.0,0.90082518]
[1749254869706,0.06585439,104410.0,104400.0,0.90082518]
[1749254869913,0.24364539,104410.0,104400.0,0.90082518]
[1749254870358,0.22449024,104410.0,104400.0,0.90082518]
[1749254870564,0.20652285,104410.0,104400.0,0.91040308]
[1749254870992,0.22449025,104410.0,104400.0,0.91040308]
[1749254871405,0.21610038,104410.0,104400.0,0.91040308]
[1749254871628,0.23406785,104410.0,104400.0,0.91040308]
[1749254871949,0.21610038,104410.0,104400.0,0.91040308]
[1749254872151,0.23406785,104410.0,104400.0,0.91040308]
[1749254872361,0.23406786,104410.0,104400.0,0.91040308]
[1749254872936,0.23406785,104410.0,104400.0,0.91040308]
[1749254873076,0.23406784,104410.0,104400.0,0.91040308]
[1749254873297,0.225678,104410.0,104400.0,0.91040308]
[1749254873679,0.24364545,104410.0,104400.0,0.91040308]
[1749254873884,0.23406783,104410.0,104400.0,0.91040308]
[1749254874076,0.23404415,104410.0,104400.0,0.91040308]
[1749254874306,0.21610038,104410.0,104400.0,0.91040308]
[1749254874660,0.23404415,104410.0,104400.0,0.91040308]
[1749254875114,0.21610038,104410.0,104400.0,0.91040308]
[1749254875657,0.23404417,104410.0,104400.0,0.91040308]
[1749254876084,0.22446298,104410.0,104400.0,0.91040308]
[1749254876289,0.23404051,104410.0,104400.0,0.91040308]
[1749254876495,0.21610038,104410.0,104400.0,0.91040308]
[1749254876733,0.05624951,104410.0,104400.0,0.91040308]
[1749254876939,0.20652285,104410.0,104400.0,0.91040308]
[1749254877154,0.2340405,104410.0,104400.0,0.91040308]
[1749254877561,0.24361812,104410.0,104400.0,0.90082518]
[1749254878406,0.24361743,104410.0,104400.0,0.90082518]
[1749254878811,0.225678,104410.0,104400.0,0.90082518]
[1749254879020,0.24361743,104410.0,104400.0,0.90082518]
[1749254880266,0.225678,104410.0,104400.0,0.89124719]
[1749254880469,0.2340385,104410.0,104400.0,0.90082509]
[1749254880605,0.19572928,104410.0,104400.0,0.90082509]
[1749254880806,0.21488315,104410.0,104400.0,0.90082509]
[1749254881010,0.21488306,104410.0,104400.0,0.90082509]
[1749254881331,0.26076111,104420.0,104410.0,0.24090731]
[1749254881551,0.25403426,104420.0,104410.0,0.25048438]
[1749254881719,0.26360518,104420.0,104410.0,0.26006154]
[1749254881928,0.25402839,104420.0,104410.0,0.26963852]
[1749254882147,0.23609589,104420.0,104410.0,0.26963852]
[1749254882354,0.263605,104420.0,104410.0,0.26963852]
[1749254882867,0.25402839,104420.0,104410.0,0.27063852]
[1749254883714,0.23609589,104420.0,104410.0,0.27063852]
[1749254883925,0.26360359,104420.0,104410.0,0.27163852]
[1749254884169,0.22529796,104420.0,104410.0,0.27163852]
[1749254884368,0.2265191,104420.0,104410.0,0.27163852]
[1749254884578,0.23609553,104420.0,104410.0,0.27163852]
[1749254884786,0.2265191,104420.0,104410.0,0.27163852]
[1749254884998,0.24444952,104420.0,104410.0,0.27163852]
[1749254885214,0.197791,104420.0,104410.0,0.27163852]
[1749254885443,0.20736697,104420.0,104410.0,0.27163852]
[1749254885640,0.20736688,104420.0,104410.0,0.27163852]
[1749254886268,0.21694294,104420.0,104410.0,0.27163852]
[1749254887358,0.21694285,104420.0,104410.0,0.27163852]
[1749254887777,0.226519,104420.0,104410.0,0.27163852]
[1749254887990,0.23609525,104420.0,104410.0,0.27163852]
[1749254888191,0.21694285,104420.0,104410.0,0.27163852]
[1749254888751,0.226519,104420.0,104410.0,0.27163852]
[1749254888958,0.01754004,104420.0,104410.0,0.27163852]
[1749254889174,0.02711592,104420.0,104410.0,0.27163852]
[1749254889826,0.03669217,104420.0,104410.0,0.27163852]
[1749254890025,0.0462686,104420.0,104410.0,0.27163852]
[1749254890232,0.03669217,104420.0,104410.0,0.27163852]
[1749254890638,0.04626851,104420.0,104410.0,0.27163852]
[1749254890848,0.22822681,104420.0,104410.0,0.24290731]
[1749254891059,0.03830526,104420.0,104410.0,0.25248429]
[1749254891478,0.02872874,104420.0,104410.0,0.25248429]
[1749254891868,0.03830526,104420.0,104410.0,0.25248429]
[1749254892127,0.02872874,104420.0,104410.0,0.25248429]
[1749254892352,0.03830526,104420.0,104410.0,0.25248429]
[1749254892564,0.02872874,104420.0,104410.0,0.25248429]
[1749254892770,0.0191524,104420.0,104410.0,0.25248429]
[1749254893394,0.02872883,104420.0,104410.0,0.25248429]
[1749254893822,0.03830553,104420.0,104410.0,0.25248429]
[1749254894869,0.22983971,104420.0,104410.0,0.25248447]
[1749254895729,0.22026356,104420.0,104410.0,0.24290731]
[1749254895924,0.22026356,104420.0,104410.0,0.25248447]
[1749254896336,0.22026356,104420.0,104410.0,0.24290731]
[1749254896547,0.22026356,104420.0,104410.0,0.25248438]
[1749254896755,0.02872938,104420.0,104410.0,0.25248438]
[1749254896992,0.22026356,104420.0,104410.0,0.24290731]
[1749254897192,0.22026356,104420.0,104410.0,0.25248447]
[1749254898867,0.2381883,104420.0,104410.0,0.25248447]
[1749254899076,0.23819033,104420.0,104410.0,0.25248447]
[1749254899249,0.23819033,104420.0,104410.0,0.26206154]
[1749254899472,0.23819033,104420.0,104410.0,0.25248447]
[1749254900083,0.22026356,104420.0,104410.0,0.25248447]
[1749254900456,0.21068731,104420.0,104410.0,0.24290731]
[1749254900857,0.22861408,104420.0,104410.0,0.51894731]
[1749254901054,0.21903936,104420.0,104410.0,0.50937006]
[1749254901258,0.21903936,104420.0,104410.0,0.51894741]
[1749254901919,0.20111088,104420.0,104410.0,0.51894741]
[1749254902127,10.24666181,104430.0,104410.0,0.51894741]
[1749254902326,5.24153418,104420.0,104410.0,0.53810182]
[1749254902713,0.19153418,104420.0,104410.0,0.92262182]
[1749254903131,0.19153418,104420.0,104410.0,0.92062182]
[1749254903955,0.19153418,104420.0,104410.0,0.92162182]
[1749254905350,0.19153418,104420.0,104410.0,0.92262182]
[1749254905830,0.19153418,104420.0,104410.0,0.93219889]
[1749254906529,0.19153418,104420.0,104410.0,0.92262182]
[1749254908919,0.19153418,104420.0,104410.0,0.93219889]
[1749254911152,0.21068731,104420.0,104410.0,0.93219889]
[1749254912754,0.01915258,104420.0,104410.0,0.93219889]
[1749254912973,0.03830589,104420.0,104410.0,0.93219889]
[1749254914026,0.22984007,104420.0,104410.0,0.92262182]
[1749254914249,0.23821566,104420.0,104410.0,0.91304466]
[1749254914460,0.21906262,104420.0,104410.0,0.69276]
[1749254914732,0.25076296,104420.0,104410.0,0.66256]
[1749254915358,5.25111088,104420.0,104410.0,0.66256]
[1749254915592,5.2920118,104420.0,104410.0,0.66256]
[1749254915827,5.29201178,104420.0,104410.0,0.66256]
[1749254916046,5.29874373,104420.0,104410.0,0.911]
[1749254916514,5.33044342,104420.0,104410.0,0.617]
[1749254916737,5.33044342,104420.0,104410.0,0.91068]
[1749254916944,5.31248931,104420.0,104410.0,0.91068]
[1749254917380,5.31248925,104420.0,104410.0,0.91068]
[1749254917592,5.33043398,104420.0,104410.0,0.91068]
[1749254917810,5.35912878,104420.0,104410.0,0.91068]
[1749254918605,5.35912859,104420.0,104410.0,0.91068]
[1749254918834,5.35912857,104420.0,104410.0,0.91068]
[1749254919051,5.33445515,104420.0,104410.0,0.91068]
[1749254919267,5.34118426,104420.0,104410.0,0.91068]
[1749254919453,5.33445515,104420.0,104410.0,0.91068]
[1749254919668,5.32370429,104420.0,104410.0,0.91068]
[1749254919869,5.3304334,104420.0,104410.0,0.91068]
[1749254920494,5.33042383,104420.0,104410.0,0.91068]
[1749254920697,5.31248648,104420.0,104410.0,0.91068]
[1749254920850,5.32369733,104420.0,104410.0,0.91068]
[1749254921071,5.33042383,104420.0,104410.0,0.91068]
[1749254922236,5.33042477,104420.0,104410.0,0.91068]
[1749254922398,5.33042519,104420.0,104410.0,0.91068]
[1749254922809,5.3236983,104420.0,104410.0,0.91068]
[1749254923008,5.33042517,104420.0,104410.0,0.91068]
[1749254924382,5.33042335,104420.0,104410.0,0.91068]
[1749254924565,5.31248504,104420.0,104410.0,0.91068]
[1749254924778,5.32369348,104420.0,104410.0,0.91068]
[1749254924955,5.33041854,104420.0,104410.0,0.91068]
[1749254925647,5.33041854,104420.0,104410.0,0.63464]
[1749254925865,5.31248504,104420.0,104410.0,0.63464]
[1749254926317,5.32369348,104420.0,104410.0,0.63464]
[1749254926529,5.33041854,104420.0,104410.0,0.63464]
[1749254926976,5.31248504,104420.0,104410.0,0.63464]
[1749254927150,5.33041675,104420.0,104410.0,0.63464]
[1749254927422,5.33041608,104420.0,104410.0,0.63464]
[1749254927599,5.33041612,104420.0,104410.0,0.63464]
[1749254927803,5.31248438,104420.0,104410.0,0.63464]
[1749254928008,5.32369172,104420.0,104410.0,0.63464]
[1749254928178,5.33041613,104420.0,104410.0,0.63464]
[1749254928381,5.33041608,104420.0,104410.0,0.63464]
[1749254929055,5.33041564,104420.0,104410.0,0.63464]
[1749254929278,5.32369039,104420.0,104410.0,0.63464]
[1749254929476,5.31248388,104420.0,104410.0,0.63464]
[1749254929715,5.33041428,104420.0,104410.0,0.63464]
[1749254929951,5.33041426,104420.0,104410.0,0.63464]
[1749254930886,5.31248379,104420.0,104410.0,0.63464]
[1749254931111,5.30575998,104420.0,104410.0,0.63464]
[1749254931333,5.31248379,104420.0,104410.0,0.63464]
[1749254931553,5.32369014,104420.0,104410.0,0.63464]
[1749254931774,5.31248379,104420.0,104410.0,0.63464]
[1749254932209,5.33041395,104420.0,104410.0,0.63464]
[1749254932886,5.30575998,104420.0,104410.0,0.63464]
[1749254933103,5.33041395,104420.0,104410.0,0.63464]
[1749254933324,0.26248379,104420.0,104410.0,0.63464]
[1749254933537,5.28281088,104420.0,104410.0,0.63464]
[1749254933785,5.33041391,104420.0,104410.0,0.63464]
[1749254934460,5.31248424,104420.0,104410.0,0.63464]
[1749254934893,5.33041562,104420.0,104410.0,0.63464]
[1749254935113,5.31248424,104420.0,104410.0,0.63464]
[1749254935336,5.33041563,104420.0,104410.0,0.63464]
[1749254935561,5.33041564,104420.0,104410.0,0.63464]
[1749254936019,5.33041623,104420.0,104410.0,0.63464]
[1749254936235,5.33041735,104420.0,104410.0,0.63464]
[1749254936451,5.31248537,104420.0,104410.0,0.63464]
[1749254936886,5.32369436,104420.0,104410.0,0.63464]
[1749254937316,5.33041975,104420.0,104410.0,0.63464]
[1749254937800,5.30789436,104420.0,104410.0,0.63464]
[1749254938009,5.31462181,104420.0,104410.0,0.63464]
[1749254938245,5.40429634,104420.0,104410.0,0.25044]
[1749254938473,5.80833956,104420.0,104410.0,0.63444]
[1749254938690,5.78799269,104420.0,104410.0,0.63444]
[1749254938956,5.78799298,104420.0,104410.0,0.63444]
[1749254939167,5.7767817,104420.0,104410.0,0.63444]
[1749254939378,5.80253398,104420.0,104410.0,0.63444]